Workbook

Sheet Groep A
B1: Datum | C1: GROEP A | E1: Moyenne | F1: te maken caramboles | G1: rating getal | H1: caramboles 1e partij | I1: hoogdte serie 1e partij | J1: percentage 1e partij | K1: caramboles 2e partij | L1: hoogste serie 2e partij | M1: percentage 2e partij | N1: totaal caramboles | O1: gespeeld gemiddelde | P1: gespeeld percentage | Q1: Punten afgerond | R1: uitgenodigd Finale
A2: 1 | B2: 2021-11-30 | C2: Roelie Doornbos | D2: A | E2: =VLOOKUP(F2,X$2:Y29,2) -> 1.65 | F2: 42 | G2: =F2/25 -> 1.68 | H2: 74 | I2: 12 | J2: =H2/F2*100 -> 176.1904762 | K2: 40 | L2: 4 | M2: =K2/F2*100 -> 95.23809524 | N2: =H2+K2 -> 114 | O2: =N2/50 -> 2.28 | P2: =O2/G2*100 -> 135.7142857 | Q2: =ROUNDDOWN(P2,0) -> 135 | X2: 12 | Y2: 0.27
A3: 2 | B3: 2021-11-30 | C3: Ton Been | D3: A | E3: =VLOOKUP(F3,X$2:Y30,2) -> 2.37 | F3: 56 | G3: 2.24 | H3: 81 | I3: 17 | J3: 144.6428571 | K3: 55 | L3: 7 | M3: 98.21428571 | N3: 136 | O3: 2.72 | P3: 121.4285714 | Q3: 121 | X3: 14 | Y3: 0.32
A4: 3 | B4: 2021-12-01 | C4: Willie Siemens | D4: A | E4: =VLOOKUP(F4,X$2:Y31,2) -> 2.62 | F4: 60 | G4: 2.4 | H4: 77 | I4: 12 | J4: 128.3333333 | K4: 64 | L4: 15 | M4: 106.6666667 | N4: 141 | O4: 2.82 | P4: 117.5 | Q4: 117 | X4: 15 | Y4: 0.37
A5: 4 | B5: 2021-12-04 | C5: Geiko Reder | D5: A | E5: =VLOOKUP(F5,X$2:Y32,2) -> 1.65 | F5: 42 | G5: 1.68 | H5: 49 | I5: 8 | J5: 116.6666667 | K5: 49 | L5: 8 | M5: 116.6666667 | N5: 98 | O5: 1.96 | P5: 116.6666667 | Q5: 116 | X5: 17 | Y5: 0.42
A6: 5 | C6: Henk Mathijssen | D6: A | E6: =VLOOKUP(F6,X$2:Y33,2) -> 2.62 | F6: 60 | G6: 2.4 | H6: 87 | I6: 13 | J6: 145 | K6: 52 | L6: 9 | M6: 86.66666667 | N6: 139 | O6: 2.78 | P6: 115.8333333 | Q6: 115 | X6: 18 | Y6: 0.47
A7: 6 | B7: 2021-12-04 | C7: Jan Sietsma | D7: A | E7: =VLOOKUP(F7,X$2:Y34,2) -> 2.87 | F7: 64 | G7: 2.56 | H7: 90 | I7: 25 | J7: 140.625 | K7: 56 | L7: 12 | M7: 87.5 | N7: 146 | O7: 2.92 | P7: 114.0625 | Q7: 114 | X7: 20 | Y7: 0.55
A8: 7 | B8: 2021-11-27 | C8: Richart Kant | D8: A | E8: =VLOOKUP(F8,X$2:Y35,2) -> 3.12 | F8: 68 | G8: 2.72 | H8: 87 | I8: 13 | J8: 127.9411765 | K8: 67 | L8: 13 | M8: 98.52941176 | N8: 154 | O8: 3.08 | P8: 113.2352941 | Q8: 113 | X8: 22 | Y8: 0.65
A9: 8 | B9: 2021-12-04 | C9: Ronnie Berg | D9: A | E9: =VLOOKUP(F9,X$2:Y36,2) -> 1.85 | F9: 47 | G9: 1.88 | H9: 58 | I9: 12 | J9: 123.4042553 | K9: 44 | L9: 8 | M9: 93.61702128 | N9: 102 | O9: 2.04 | P9: 108.5106383 | Q9: 108 | X9: 23 | Y9: 0.75
A10: 9 | B10: 2021-12-01 | C10: Ron Eissen | D10: A | E10: =VLOOKUP(F10,X$2:Y37,2) -> 1.75 | F10: 45 | G10: 1.8 | H10: 29 | I10: 4 | J10: 64.44444444 | K10: 67 | L10: 12 | M10: 148.8888889 | N10: 96 | O10: 1.92 | P10: 106.6666667 | Q10: 106 | X10: 25 | Y10: 0.85
A11: 10 | B11: 2021-11-30 | C11: Jan Poot | D11: A | E11: =VLOOKUP(F11,X$2:Y38,2) -> 1.85 | F11: 47 | G11: 1.88 | H11: 56 | I11: 8 | J11: 119.1489362 | K11: 43 | L11: 10 | M11: 91.4893617 | N11: 99 | O11: 1.98 | P11: 105.3191489 | Q11: 105 | X11: 26 | Y11: 0.95
A12: 11 | B12: 2021-11-30 | C12: Siep Ziesling | D12: A | E12: =VLOOKUP(F12,X$2:Y39,2) -> 1.65 | F12: 42 | G12: 1.68 | H12: 54 | I12: 12 | J12: 128.5714286 | K12: 33 | L12: 9 | M12: 78.57142857 | N12: 87 | O12: 1.74 | P12: 103.5714286 | Q12: 103 | X12: 28 | Y12: 1.05
A13: 12 | B13: 2021-12-01 | C13: Tjaad Schaub | D13: A | E13: =VLOOKUP(F13,X$2:Y40,2) -> 3.12 | F13: 68 | G13: 2.72 | H13: 47 | I13: 6 | J13: 69.11764706 | K13: 93 | L13: 9 | M13: 136.7647059 | N13: 140 | O13: 2.8 | P13: 102.9411765 | Q13: 102 | X13: 30 | Y13: 1.15
A14: 13 | B14: 2021-11-27 | C14: Henk Bos | D14: A | E14: =VLOOKUP(F14,X$2:Y41,2) -> 2.87 | F14: 64 | G14: 2.56 | H14: 58 | I14: 9 | J14: 90.625 | K14: 70 | L14: 12 | M14: 109.375 | N14: 128 | O14: 2.56 | P14: 100 | Q14: 100 | X14: 33 | Y14: 1.25
A15: 14 | B15: 2021-11-30 | C15: Kasper Sturre | D15: A | E15: =VLOOKUP(F15,X$2:Y42,2) -> 2.62 | F15: 60 | G15: 2.4 | H15: 67 | I15: 8 | J15: 111.6666667 | K15: 53 | L15: 9 | M15: 88.33333333 | N15: 120 | O15: 2.4 | P15: 100 | Q15: 100 | X15: 35 | Y15: 1.35
A16: 15 | B16: 2021-12-01 | C16: Eiso Kleefman | D16: A | E16: =VLOOKUP(F16,X$2:Y43,2) -> 2.37 | F16: 56 | G16: 2.24 | H16: 59 | I16: 12 | J16: 105.3571429 | K16: 53 | L16: 11 | M16: 94.64285714 | N16: 112 | O16: 2.24 | P16: 100 | Q16: 100 | X16: 38 | Y16: 1.45
A17: 16 | B17: 2021-11-30 | C17: MarinusTapilatu | D17: A | E17: =VLOOKUP(F17,X$2:Y44,2) -> 1.85 | F17: 47 | G17: 1.88 | H17: 45 | I17: 9 | J17: 95.74468085 | K17: 46 | L17: 7 | M17: 97.87234043 | N17: 91 | O17: 1.82 | P17: 96.80851064 | Q17: 96 | X17: 40 | Y17: 1.55
A18: 17 | B18: 2021-11-30 | C18: Geert Greving | D18: A | E18: =VLOOKUP(F18,X$2:Y45,2) -> 3.37 | F18: 72 | G18: 2.88 | H18: 68 | I18: 20 | J18: 94.44444444 | K18: 70 | L18: 10 | M18: 97.22222222 | N18: 138 | O18: 2.76 | P18: 95.83333333 | Q18: 95 | X18: 42 | Y18: 1.65
A19: 18 | B19: 2021-12-01 | C19: Anton Senneker | D19: A | E19: =VLOOKUP(F19,X$2:Y46,2) -> 1.85 | F19: 47 | G19: 1.88 | H19: 36 | I19: 5 | J19: 76.59574468 | K19: 53 | L19: 8 | M19: 112.7659574 | N19: 89 | O19: 1.78 | P19: 94.68085106 | Q19: 94 | X19: 45 | Y19: 1.75
A20: 19 | B20: 2021-12-02 | C20: Eefke Robs | D20: A | E20: =VLOOKUP(F20,X$2:Y47,2) -> 1.85 | F20: 47 | G20: 1.88 | H20: 38 | I20: 9 | J20: 80.85106383 | K20: 50 | L20: 7 | M20: 106.3829787 | N20: 88 | O20: 1.76 | P20: 93.61702128 | Q20: 93 | X20: 47 | Y20: 1.85
A21: 20 | B21: 2021-12-01 | C21: Klaas Boven | D21: A | E21: =VLOOKUP(F21,X$2:Y48,2) -> 1.65 | F21: 42 | G21: 1.68 | H21: 41 | I21: 7 | J21: 97.61904762 | K21: 37 | L21: 10 | M21: 88.0952381 | N21: 78 | O21: 1.56 | P21: 92.85714286 | Q21: 92 | X21: 50 | Y21: 1.95
A22: 21 | B22: 2021-12-04 | C22: Bernard Bos | D22: A | E22: =VLOOKUP(F22,X$2:Y49,2) -> 1.75 | F22: 45 | G22: 1.8 | H22: 37 | I22: 4 | J22: 82.22222222 | K22: 46 | L22: 6 | M22: 102.2222222 | N22: 83 | O22: 1.66 | P22: 92.22222222 | Q22: 92 | X22: 52 | Y22: 2.12
A23: 22 | B23: 2021-12-02 | C23: Jan Olsder | D23: A | E23: =VLOOKUP(F23,X$2:Y50,2) -> 1.95 | F23: 50 | G23: 2 | H23: 40 | I23: 4 | J23: 80 | K23: 50 | L23: 7 | M23: 100 | N23: 90 | O23: 1.8 | P23: 90 | Q23: 90 | X23: 56 | Y23: 2.37
A24: 23 | B24: 2021-11-30 | C24: Piet Bouwman | D24: A | E24: =VLOOKUP(F24,X$2:Y51,2) -> 2.37 | F24: 56 | G24: 2.24 | H24: 59 | I24: 8 | J24: 105.3571429 | K24: 37 | L24: 8 | M24: 66.07142857 | N24: 96 | O24: 1.92 | P24: 85.71428571 | Q24: 85 | X24: 60 | Y24: 2.62
A25: 24 | B25: 2021-12-04 | C25: Lucas Bronsema | D25: A | E25: =VLOOKUP(F25,X$2:Y52,2) -> 3.12 | F25: 68 | G25: 2.72 | H25: 66 | I25: 18 | J25: 97.05882353 | K25: 50 | L25: 29 | M25: 73.52941176 | N25: 116 | O25: 2.32 | P25: 85.29411765 | Q25: 85 | X25: 64 | Y25: 2.87
A26: 25 | B26: 2021-11-30 | C26: Willem Reilink | D26: A | E26: =VLOOKUP(F26,X$2:Y53,2) -> 3.12 | F26: 68 | G26: 2.72 | H26: 54 | I26: 8 | J26: 79.41176471 | K26: 60 | L26: 14 | M26: 88.23529412 | N26: 114 | O26: 2.28 | P26: 83.82352941 | Q26: 83 | X26: 68 | Y26: 3.12
A27: 26 | B27: 2021-11-30 | C27: Stinus Sluiter | D27: A | E27: =VLOOKUP(F27,X$2:Y54,2) -> 3.75 | F27: 80 | G27: 3.2 | H27: 57 | I27: 18 | J27: 71.25 | K27: 76 | L27: 11 | M27: 95 | N27: 133 | O27: 2.66 | P27: 83.125 | Q27: 83 | X27: 72 | Y27: 3.37
A28: 27 | B28: 2021-11-30 | C28: Wolter Eling | D28: A | E28: =VLOOKUP(F28,X$2:Y55,2) -> 3.37 | F28: 72 | G28: 2.88 | H28: 67 | I28: 12 | J28: 93.05555556 | K28: 51 | L28: 8 | M28: 70.83333333 | N28: 118 | O28: 2.36 | P28: 81.94444444 | Q28: 81 | X28: 80 | Y28: 3.75
A29: 28 | B29: 2021-11-30 | C29: Pieter Huizeling | D29: A | E29: =VLOOKUP(F29,X$2:Y56,2) -> 1.95 | F29: 50 | G29: 2 | H29: 29 | I29: 4 | J29: 58 | K29: 46 | L29: 10 | M29: 92 | N29: 75 | O29: 1.5 | P29: 75 | Q29: 75 | X29: 88 | Y29: 4.25
A30: 29 | B30: 2021-11-27 | C30: Cees Doornbos | D30: A | E30: =VLOOKUP(F30,X$2:Y57,2) -> 2.37 | F30: 56 | G30: 2.24 | H30: 39 | I30: 6 | J30: 69.64285714 | K30: 43 | L30: 7 | M30: 76.78571429 | N30: 82 | O30: 1.64 | P30: 73.21428571 | Q30: 73 | X30: 96 | Y30: 4.75
A31: 30 | B31: 2021-12-04 | C31: Roelof Eefting | D31: A | E31: =VLOOKUP(F31,X$2:Y58,2) -> 3.37 | F31: 72 | G31: 2.88 | H31: 47 | I31: 9 | J31: 65.27777778 | K31: 57 | L31: 7 | M31: 79.16666667 | N31: 104 | O31: 2.08 | P31: 72.22222222 | Q31: 72 | X31: 104 | Y31: 5.25
A32: 31 | B32: 2021-11-27 | C32: Jos Bouwmeester | D32: A | E32: =VLOOKUP(F32,X$2:Y59,2) -> 1.95 | F32: 50 | G32: 2 | H32: 40 | I32: 9 | J32: 80 | K32: 32 | L32: 9 | M32: 64 | N32: 72 | O32: 1.44 | P32: 72 | Q32: 72 | X32: 112 | Y32: 5.75
A33: 32 | B33: 2021-11-25 | C33: Siep Mellema | D33: A | E33: =VLOOKUP(F33,X$2:Y60,2) -> 2.37 | F33: 58 | G33: 2.32 | H33: 42 | I33: 9 | J33: 72.4137931 | K33: 38 | L33: 9 | M33: 65.51724138 | N33: 80 | O33: 1.6 | P33: 68.96551724 | Q33: 68
A34: 33 | B34: 2021-11-30 | C34: Piet van Oosten | D34: A | E34: =VLOOKUP(F34,X$2:Y61,2) -> 1.55 | F34: 40 | G34: =F34/25 -> 1.6 | H34: 26 | I34: 6 | J34: =H34/F34*100 -> 65 | K34: 28 | L34: 4 | M34: =K34/F34*100 -> 70 | N34: =H34+K34 -> 54 | O34: =N34/50 -> 1.08 | P34: =O34/G34*100 -> 67.5 | Q34: =ROUNDDOWN(P34,0) -> 67
A35: 34 | B35: 2021-12-04 | C35: Derk Jan v/d Laan | D35: A | E35: =VLOOKUP(F35,X$2:Y62,2) -> 2.37 | F35: 56 | G35: 2.24 | H35: 33 | I35: 5 | J35: 58.92857143 | K35: 29 | L35: 5 | M35: 51.78571429 | N35: 62 | O35: 1.24 | P35: 55.35714286 | Q35: 55
A36: 35 | B36: 2021-12-04 | C36: Eppo Loer | D36: A | E36: =VLOOKUP(F36,X$2:Y63,2) -> 2.12 | F36: 52 | G36: 2.08 | J36: 0 | M36: 0 | N36: 0 | O36: 0 | P36: 0 | Q36: 0
A37: 36 | B37: 2021-12-04 | C37: Jan Boltjes | D37: A | E37: =VLOOKUP(F37,X$2:Y64,2) -> 1.65 | F37: 42 | G37: 1.68 | J37: 0 | M37: 0 | N37: 0 | O37: 0 | P37: 0 | Q37: 0
A38: 37 | D38: A | E38: =VLOOKUP(F38,X$2:Y65,2) -> 1.95 | F38: 50 | G38: 2 | J38: 0 | M38: 0 | N38: 0 | O38: 0 | P38: 0 | Q38: 0
A39: 38 | D39: A | E39: =VLOOKUP(F39,X$2:Y66,2) -> 3.12 | F39: 68 | G39: 2.72 | J39: 0 | M39: 0 | N39: 0 | O39: 0 | P39: 0 | Q39: 0
A40: 39 | D40: A | E40: =VLOOKUP(F40,X$2:Y67,2) -> 1.95 | F40: 50 | G40: 2 | J40: 0 | M40: 0 | N40: 0 | O40: 0 | P40: 0 | Q40: 0
A41: 40 | D41: A | E41: =VLOOKUP(F41,X$2:Y68,2) -> 2.37 | F41: 56 | G41: 2.24 | J41: 0 | M41: 0 | N41: 0 | O41: 0 | P41: 0 | Q41: 0
A42: 41 | D42: A | E42: =VLOOKUP(F42,X$2:Y69,2) -> 1.75 | F42: 45 | G42: 1.8 | J42: 0 | M42: 0 | N42: 0 | O42: 0 | P42: 0 | Q42: 0
A43: 42 | D43: A | E43: =VLOOKUP(F43,X$2:Y70,2) -> 2.62 | F43: 60 | G43: 2.4 | J43: 0 | M43: 0 | N43: 0 | O43: 0 | P43: 0 | Q43: 0
A44: 43 | D44: A | E44: =VLOOKUP(F44,X$2:Y71,2) -> 2.87 | F44: 64 | G44: 2.56 | J44: 0 | M44: 0 | N44: 0 | O44: 0 | P44: 0 | Q44: 0
A45: 44 | D45: A | E45: =VLOOKUP(F45,X$2:Y72,2) -> 1.85 | F45: 47 | G45: 1.88 | J45: 0 | M45: 0 | N45: 0 | O45: 0 | P45: 0 | Q45: 0
A46: 45 | D46: A | E46: =VLOOKUP(F46,X$2:Y73,2) -> 4.25 | F46: 88 | G46: 3.52 | J46: 0 | M46: 0 | N46: 0 | O46: 0 | P46: 0 | Q46: 0
A47: 46 | D47: A | E47: =VLOOKUP(F47,X$2:Y74,2) -> 1.05 | F47: 28 | G47: 1.12 | J47: 0 | M47: 0 | N47: 0 | O47: 0 | P47: 0 | Q47: 0
A48: 47 | D48: A | E48: =VLOOKUP(F48,X$2:Y75,2) -> 0.32 | F48: 14 | G48: 0.56 | J48: 0 | M48: 0 | N48: 0 | O48: 0 | P48: 0 | Q48: 0
A49: 48 | D49: A | E49: =VLOOKUP(F49,X$2:Y76,2) -> 0.32 | F49: 14 | G49: 0.56 | J49: 0 | M49: 0 | N49: 0 | O49: 0 | P49: 0 | Q49: 0
A50: 49 | D50: A | E50: =VLOOKUP(F50,X$2:Y77,2) -> 0.32 | F50: 14 | G50: 0.56 | J50: 0 | M50: 0 | N50: 0 | O50: 0 | P50: 0 | Q50: 0
A51: 50 | D51: A | E51: =VLOOKUP(F51,X$2:Y78,2) -> 0.32 | F51: 14 | G51: 0.56 | J51: 0 | M51: 0 | N51: 0 | O51: 0 | P51: 0 | Q51: 0
A52: 51 | D52: A | E52: =VLOOKUP(F52,X$2:Y79,2) -> 4.25 | F52: 88 | G52: 3.52 | J52: 0 | M52: 0 | N52: 0 | O52: 0 | P52: 0 | Q52: 0
A53: 52 | D53: A | E53: =VLOOKUP(F53,X$2:Y80,2) -> 0.32 | F53: 14 | G53: 0.56 | J53: 0 | M53: 0 | N53: 0 | O53: 0 | P53: 0 | Q53: 0
A54: 53 | D54: A | E54: =VLOOKUP(F54,X$2:Y81,2) -> 0.32 | F54: 14 | G54: 0.56 | J54: 0 | M54: 0 | N54: 0 | O54: 0 | P54: 0 | Q54: 0
A55: 54 | D55: A | E55: =VLOOKUP(F55,X$2:Y82,2) -> 0.32 | F55: 14 | G55: 0.56 | J55: 0 | M55: 0 | N55: 0 | O55: 0 | P55: 0 | Q55: 0
A56: 55 | D56: A | E56: =VLOOKUP(F56,X$2:Y83,2) -> 0.32 | F56: 14 | G56: 0.56 | J56: 0 | M56: 0 | N56: 0 | O56: 0 | P56: 0 | Q56: 0
A57: 56 | D57: A | E57: =VLOOKUP(F57,X$2:Y84,2) -> 0.32 | F57: 14 | G57: 0.56 | J57: 0 | M57: 0 | N57: 0 | O57: 0 | P57: 0 | Q57: 0
A58: 57 | D58: A | E58: =VLOOKUP(F58,X$2:Y85,2) -> 0.32 | F58: 14 | G58: 0.56 | J58: 0 | M58: 0 | N58: 0 | O58: 0 | P58: 0 | Q58: 0
A59: 58 | D59: A | E59: =VLOOKUP(F59,X$2:Y86,2) -> 0.32 | F59: 14 | G59: 0.56 | J59: 0 | M59: 0 | N59: 0 | O59: 0 | P59: 0 | Q59: 0
A60: 59 | D60: A | E60: =VLOOKUP(F60,X$2:Y87,2) -> 0.32 | F60: 14 | G60: 0.56 | J60: 0 | M60: 0 | N60: 0 | O60: 0 | P60: 0 | Q60: 0
A61: 60 | D61: A | E61: =VLOOKUP(F61,X$2:Y88,2) -> 0.32 | F61: 14 | G61: 0.56 | J61: 0 | M61: 0 | N61: 0 | O61: 0 | P61: 0 | Q61: 0
A62: 61 | D62: A | E62: =VLOOKUP(F62,X$2:Y89,2) -> 0.32 | F62: 14 | G62: 0.56 | J62: 0 | M62: 0 | N62: 0 | O62: 0 | P62: 0 | Q62: 0
A63: 62 | D63: A | E63: =VLOOKUP(F63,X$2:Y90,2) -> 0.32 | F63: 14 | G63: 0.56 | J63: 0 | M63: 0 | N63: 0 | O63: 0 | P63: 0 | Q63: 0
A64: 63 | D64: A | E64: =VLOOKUP(F64,X$2:Y91,2) -> 0.32 | F64: 14 | G64: 0.56 | J64: 0 | M64: 0 | N64: 0 | O64: 0 | P64: 0 | Q64: 0
A65: 64 | D65: A | E65: =VLOOKUP(F65,X$2:Y92,2) -> 0.32 | F65: 14 | G65: 0.56 | J65: 0 | M65: 0 | N65: 0 | O65: 0 | P65: 0 | Q65: 0
A66: 65 | D66: A | E66: =VLOOKUP(F66,X$2:Y93,2) -> 0.32 | F66: 14 | G66: =F66/25 -> 0.56 | J66: =H66/F66*100 -> 0 | M66: =K66/F66*100 -> 0 | N66: =H66+K66 -> 0 | O66: =N66/50 -> 0 | P66: =O66/G66*100 -> 0 | Q66: =ROUNDDOWN(P66,0) -> 0
A67: 66 | D67: A | E67: =VLOOKUP(F67,X$2:Y94,2) -> 0.32 | F67: 14 | G67: 0.56 | J67: 0 | M67: 0 | N67: 0 | O67: 0 | P67: 0 | Q67: 0
A68: 67 | D68: A | E68: =VLOOKUP(F68,X$2:Y95,2) -> 0.32 | F68: 14 | G68: 0.56 | J68: 0 | M68: 0 | N68: 0 | O68: 0 | P68: 0 | Q68: 0
A69: 68 | D69: A | E69: =VLOOKUP(F69,X$2:Y96,2) -> 0.32 | F69: 14 | G69: 0.56 | J69: 0 | M69: 0 | N69: 0 | O69: 0 | P69: 0 | Q69: 0
A70: 69 | D70: A | E70: =VLOOKUP(F70,X$2:Y97,2) -> 0.32 | F70: 14 | G70: 0.56 | J70: 0 | M70: 0 | N70: 0 | O70: 0 | P70: 0 | Q70: 0
A71: 70 | D71: A | E71: =VLOOKUP(F71,X$2:Y98,2) -> 0.32 | F71: 14 | G71: 0.56 | J71: 0 | M71: 0 | N71: 0 | O71: 0 | P71: 0 | Q71: 0
A72: 71 | D72: A | E72: =VLOOKUP(F72,X$2:Y99,2) -> 0.32 | F72: 14 | G72: 0.56 | J72: 0 | M72: 0 | N72: 0 | O72: 0 | P72: 0 | Q72: 0
A73: 72 | D73: A | E73: =VLOOKUP(F73,X$2:Y100,2) -> 0.32 | F73: 14 | G73: 0.56 | J73: 0 | M73: 0 | N73: 0 | O73: 0 | P73: 0 | Q73: 0
A74: 73 | D74: A | E74: =VLOOKUP(F74,X$2:Y101,2) -> 0.32 | F74: 14 | G74: 0.56 | J74: 0 | M74: 0 | N74: 0 | O74: 0 | P74: 0 | Q74: 0
A75: 74 | D75: A | E75: =VLOOKUP(F75,X$2:Y102,2) -> 0.32 | F75: 14 | G75: 0.56 | J75: 0 | M75: 0 | N75: 0 | O75: 0 | P75: 0 | Q75: 0
A76: 75 | D76: A | E76: =VLOOKUP(F76,X$2:Y103,2) -> 0.32 | F76: 14 | G76: 0.56 | J76: 0 | M76: 0 | N76: 0 | O76: 0 | P76: 0 | Q76: 0
A77: 76 | D77: A | E77: =VLOOKUP(F77,X$2:Y104,2) -> 0.32 | F77: 14 | G77: 0.56 | J77: 0 | M77: 0 | N77: 0 | O77: 0 | P77: 0 | Q77: 0
A78: 77 | D78: A | E78: =VLOOKUP(F78,X$2:Y105,2) -> 0.32 | F78: 14 | G78: 0.56 | J78: 0 | M78: 0 | N78: 0 | O78: 0 | P78: 0 | Q78: 0
A79: 78 | D79: A | E79: =VLOOKUP(F79,X$2:Y106,2) -> 0.32 | F79: 14 | G79: 0.56 | J79: 0 | M79: 0 | N79: 0 | O79: 0 | P79: 0 | Q79: 0
A80: 79 | D80: A | E80: =VLOOKUP(F80,X$2:Y107,2) -> 0.32 | F80: 14 | G80: 0.56 | J80: 0 | M80: 0 | N80: 0 | O80: 0 | P80: 0 | Q80: 0
A81: 80 | D81: A | E81: =VLOOKUP(F81,X$2:Y108,2) -> 0.32 | F81: 14 | G81: 0.56 | J81: 0 | M81: 0 | N81: 0 | O81: 0 | P81: 0 | Q81: 0
A82: 81 | D82: A | E82: =VLOOKUP(F82,X$2:Y109,2) -> 0.32 | F82: 14 | G82: 0.56 | J82: 0 | M82: 0 | N82: 0 | O82: 0 | P82: 0 | Q82: 0
A83: 82 | D83: A | E83: =VLOOKUP(F83,X$2:Y110,2) -> 0.32 | F83: 14 | G83: 0.56 | J83: 0 | M83: 0 | N83: 0 | O83: 0 | P83: 0 | Q83: 0
A84: 83 | D84: A | E84: =VLOOKUP(F84,X$2:Y111,2) -> 0.32 | F84: 14 | G84: 0.56 | J84: 0 | M84: 0 | N84: 0 | O84: 0 | P84: 0 | Q84: 0
A85: 84 | D85: A | E85: =VLOOKUP(F85,X$2:Y112,2) -> 0.32 | F85: 14 | G85: 0.56 | J85: 0 | M85: 0 | N85: 0 | O85: 0 | P85: 0 | Q85: 0
A86: 85 | D86: A | E86: =VLOOKUP(F86,X$2:Y113,2) -> 0.32 | F86: 14 | G86: 0.56 | J86: 0 | M86: 0 | N86: 0 | O86: 0 | P86: 0 | Q86: 0
A87: 86 | D87: A | E87: =VLOOKUP(F87,X$2:Y114,2) -> 0.32 | F87: 14 | G87: 0.56 | J87: 0 | M87: 0 | N87: 0 | O87: 0 | P87: 0 | Q87: 0
A88: 87 | D88: A | E88: =VLOOKUP(F88,X$2:Y115,2) -> 0.32 | F88: 14 | G88: 0.56 | J88: 0 | M88: 0 | N88: 0 | O88: 0 | P88: 0 | Q88: 0
A89: 88 | D89: A | E89: =VLOOKUP(F89,X$2:Y116,2) -> 0.32 | F89: 14 | G89: 0.56 | J89: 0 | M89: 0 | N89: 0 | O89: 0 | P89: 0 | Q89: 0
A90: 89 | D90: A | E90: =VLOOKUP(F90,X$2:Y117,2) -> 1.95 | F90: 50 | G90: 2 | J90: 0 | M90: 0 | N90: 0 | O90: 0 | P90: 0 | Q90: 0

Sheet Groep B
B1: Datum | C1: GROEP B | E1: Moyenne | F1: te maken caramboles | G1: rating getal | H1: caramboles 1e partij | I1: hoogste serie 1e partij | J1: percentage 1e partij | K1: caramboles 2e partij | L1: hoogste serie 2e partij | M1: percentage 2e partij | N1: totaal caramboles | O1: gespeeld gemiddelde | P1: gespeeld percentage | Q1: Punten afgerond | R1: uitgenodigd Finale
A2: 1 | B2: 2021-12-01 | C2: Elzo Dijk | D2: B | E2: =VLOOKUP(F2,'Groep A'!X$2:Y35,2) -> 1.05 | F2: 28 | G2: =F2/25 -> 1.12 | H2: 50 | I2: 8 | J2: =H2/F2*100 -> 178.5714286 | K2: 31 | L2: 6 | M2: =K2/F2*100 -> 110.7142857 | N2: =H2+K2 -> 81 | O2: =N2/50 -> 1.62 | P2: =O2/G2*100 -> 144.6428571 | Q2: =ROUNDDOWN(P2,0) -> 144
A3: 2 | B3: 2021-12-01 | C3: Guide van Alfen | D3: B | E3: =VLOOKUP(F3,'Groep A'!X$2:Y48,2) -> 1.45 | F3: 38 | G3: 1.52 | H3: 66 | I3: 10 | J3: 173.6842105 | K3: 39 | L3: 9 | M3: 102.6315789 | N3: 105 | O3: 2.1 | P3: 138.1578947 | Q3: 138
A4: 3 | B4: 2021-12-01 | C4: Johan Boonma | D4: B | E4: =VLOOKUP(F4,'Groep A'!X$2:Y33,2) -> 1.15 | F4: 30 | G4: 1.2 | H4: 37 | I4: 7 | J4: 123.3333333 | K4: 45 | L4: 9 | M4: 150 | N4: 82 | O4: 1.64 | P4: 136.6666667 | Q4: 136
A5: 4 | B5: 2021-11-30 | C5: Caren Eling | D5: B | E5: =VLOOKUP(F5,'Groep A'!X$2:Y57,2) -> 0.55 | F5: 20 | G5: 0.8 | H5: 30 | I5: 5 | J5: 150 | K5: 21 | L5: 3 | M5: 105 | N5: 51 | O5: 1.02 | P5: 127.5 | Q5: 127
A6: 5 | B6: 2021-11-30 | C6: Klaas Boersma | D6: B | E6: =VLOOKUP(F6,'Groep A'!X$2:Y54,2) -> 1.15 | F6: 30 | G6: 1.2 | H6: 41 | I6: 7 | J6: 136.6666667 | K6: 33 | L6: 6 | M6: 110 | N6: 74 | O6: 1.48 | P6: 123.3333333 | Q6: 123
A7: 6 | B7: 2021-11-30 | C7: Henk hofman | D7: B | E7: =VLOOKUP(F7,'Groep A'!X$2:Y37,2) -> 1.75 | F7: 45 | G7: 1.8 | H7: 58 | I7: 4 | J7: 128.8888889 | K7: 53 | L7: 11 | M7: 117.7777778 | N7: 111 | O7: 2.22 | P7: 123.3333333 | Q7: 123
A8: 7 | B8: 2021-12-01 | C8: Henrie Leeuwerke | D8: B | E8: =VLOOKUP(F8,'Groep A'!X$2:Y46,2) -> 0.47 | F8: 18 | G8: 0.72 | H8: 27 | I8: 10 | J8: 150 | K8: 16 | L8: 4 | M8: 88.88888889 | N8: 43 | O8: 0.86 | P8: 119.4444444 | Q8: 119
A9: 8 | B9: 2021-12-01 | C9: Fred Maas | D9: B | E9: =VLOOKUP(F9,'Groep A'!X$2:Y29,2) -> 0.75 | F9: 23 | G9: 0.92 | H9: 22 | I9: 4 | J9: 95.65217391 | K9: 32 | L9: 4 | M9: 139.1304348 | N9: 54 | O9: 1.08 | P9: 117.3913043 | Q9: 117
A10: 9 | B10: 2021-11-25 | C10: Geert Jager | D10: B | E10: =VLOOKUP(F10,'Groep A'!X$2:Y41,2) -> 0.55 | F10: 20 | G10: 0.8 | H10: 19 | I10: 3 | J10: 95 | K10: 27 | L10: 5 | M10: 135 | N10: 46 | O10: 0.92 | P10: 115 | Q10: 115
A11: 10 | C11: Daniel Kerbof | D11: B | E11: =VLOOKUP(F11,'Groep A'!X$2:Y60,2) -> 0.85 | F11: 25 | G11: 1 | H11: 17 | I11: 4 | J11: 68 | K11: 40 | L11: 8 | M11: 160 | N11: 57 | O11: 1.14 | P11: 114 | Q11: 114
A12: 11 | B12: 2021-11-30 | C12: Fred Stok | D12: B | E12: =VLOOKUP(F12,'Groep A'!X$2:Y47,2) -> 1.15 | F12: 30 | G12: 1.2 | H12: 35 | I12: 6 | J12: 116.6666667 | K12: 33 | L12: 5 | M12: 110 | N12: 68 | O12: 1.36 | P12: 113.3333333 | Q12: 113
A13: 12 | C13: Roy Kerbof | D13: B | E13: =VLOOKUP(F13,'Groep A'!X$2:Y64,2) -> 1.45 | F13: 38 | G13: 1.52 | H13: 46 | I13: 6 | J13: 121.0526316 | K13: 39 | L13: 6 | M13: 102.6315789 | N13: 85 | O13: 1.7 | P13: 111.8421053 | Q13: 111
A14: 13 | B14: 2021-11-27 | C14: Feike Moerman | D14: B | E14: =VLOOKUP(F14,'Groep A'!X$2:Y43,2) -> 0.95 | F14: 26 | G14: 1.04 | H14: 22 | I14: 4 | J14: 84.61538462 | K14: 36 | L14: 8 | M14: 138.4615385 | N14: 58 | O14: 1.16 | P14: 111.5384615 | Q14: 111
A15: 14 | B15: 2021-11-30 | C15: Jan Bos | D15: B | E15: =VLOOKUP(F15,'Groep A'!X$2:Y92,2) -> 0.55 | F15: 20 | G15: 0.8 | H15: 26 | I15: 5 | J15: 130 | K15: 18 | L15: 6 | M15: 90 | N15: 44 | O15: 0.88 | P15: 110 | Q15: 110
A16: 15 | B16: 2021-11-27 | C16: Frans de Groot | D16: B | E16: =VLOOKUP(F16,'Groep A'!$X$2:$Y$32,2) -> 0.85 | F16: 25 | G16: 1 | H16: 19 | I16: 4 | J16: 76 | K16: 34 | L16: 4 | M16: 136 | N16: 53 | O16: 1.06 | P16: 106 | Q16: 106
A17: 16 | B17: 2021-12-04 | C17: Patrick Smid | D17: B | E17: =VLOOKUP(F17,'Groep A'!X$2:Y63,2) -> 1.05 | F17: 28 | G17: 1.12 | H17: 24 | I17: 7 | J17: 85.71428571 | K17: 35 | L17: 6 | M17: 125 | N17: 59 | O17: 1.18 | P17: 105.3571429 | Q17: 105
A18: 17 | B18: 2021-11-25 | C18: Elzo Lubbers | D18: B | E18: =VLOOKUP(F18,'Groep A'!X$2:Y32,2) -> 1.45 | F18: 38 | G18: 1.52 | H18: 29 | I18: 4 | J18: 76.31578947 | K18: 50 | L18: 7 | M18: 131.5789474 | N18: 79 | O18: 1.58 | P18: 103.9473684 | Q18: 103
A19: 18 | B19: 2021-12-01 | C19: Jan Weerts | D19: B | E19: =VLOOKUP(F19,'Groep A'!X$2:Y55,2) -> 0.55 | F19: 20 | G19: 0.8 | H19: 17 | I19: 4 | J19: 85 | K19: 24 | L19: 5 | M19: 120 | N19: 41 | O19: 0.82 | P19: 102.5 | Q19: 102
A20: 19 | B20: 2021-12-04 | C20: Pieter van der Poel | D20: B | E20: =VLOOKUP(F20,'Groep A'!X$2:Y49,2) -> 1.25 | F20: 33 | G20: 1.32 | H20: 32 | I20: 6 | J20: 96.96969697 | K20: 35 | L20: 6 | M20: 106.0606061 | N20: 67 | O20: 1.34 | P20: 101.5151515 | Q20: 101
A21: 20 | B21: 2021-11-25 | C21: Bert Dallinga | D21: B | E21: =VLOOKUP(F21,'Groep A'!X$2:Y90,2) -> 0.95 | F21: 26 | G21: 1.04 | H21: 23 | I21: 5 | J21: 88.46153846 | K21: 29 | L21: 5 | M21: 111.5384615 | N21: 52 | O21: 1.04 | P21: 100 | Q21: 100
A22: 21 | B22: 2021-12-01 | C22: Tallie Siemens | D22: B | E22: =VLOOKUP(F22,'Groep A'!X$2:Y45,2) -> 0.95 | F22: 26 | G22: 1.04 | H22: 30 | I22: 5 | J22: 115.3846154 | K22: 22 | L22: 4 | M22: 84.61538462 | N22: 52 | O22: 1.04 | P22: 100 | Q22: 100
A23: 22 | B23: 2021-12-01 | C23: Jan Tepper | D23: B | E23: =VLOOKUP(F23,'Groep A'!X$2:Y53,2) -> 1.25 | F23: 33 | G23: 1.32 | H23: 32 | I23: 5 | J23: 96.96969697 | K23: 27 | L23: 4 | M23: 81.81818182 | N23: 59 | O23: 1.18 | P23: 89.39393939 | Q23: 89
A24: 23 | B24: 2021-11-30 | C24: Harrie Bos | D24: B | E24: =VLOOKUP(F24,'Groep A'!X$2:Y39,2) -> 1.55 | F24: 40 | G24: 1.6 | H24: 32 | I24: 8 | J24: 80 | K24: 39 | L24: 7 | M24: 97.5 | N24: 71 | O24: 1.42 | P24: 88.75 | Q24: 88
A25: 24 | B25: 2021-11-27 | C25: Wijnold Broekema | D25: B | E25: =VLOOKUP(F25,'Groep A'!X$2:Y36,2) -> 1.25 | F25: 33 | G25: 1.32 | H25: 24 | I25: 5 | J25: 72.72727273 | K25: 33 | L25: 5 | M25: 100 | N25: 57 | O25: 1.14 | P25: 86.36363636 | Q25: 86
A26: 25 | B26: 2021-12-02 | C26: Jurrie Ekamper | D26: B | E26: =VLOOKUP(F26,'Groep A'!X$2:Y52,2) -> 0.47 | F26: 18 | G26: 0.72 | H26: 18 | I26: 2 | J26: 100 | K26: 13 | L26: 3 | M26: 72.22222222 | N26: 31 | O26: 0.62 | P26: 86.11111111 | Q26: 86
A27: 26 | B27: 2021-11-30 | C27: Derk Nieuwenhuis | D27: B | E27: =VLOOKUP(F27,'Groep A'!X$2:Y30,2) -> 1.45 | F27: 38 | G27: 1.52 | H27: 31 | I27: 5 | J27: 81.57894737 | K27: 34 | L27: 4 | M27: 89.47368421 | N27: 65 | O27: 1.3 | P27: 85.52631579 | Q27: 85
A28: 27 | B28: 2021-11-25 | C28: Hugo Jonker | D28: B | E28: =VLOOKUP(F28,'Groep A'!X$2:Y40,2) -> 1.35 | F28: 35 | G28: 1.4 | H28: 22 | I28: 4 | J28: 62.85714286 | K28: 37 | L28: 10 | M28: 105.7142857 | N28: 59 | O28: 1.18 | P28: 84.28571429 | Q28: 84
A29: 28 | B29: 2021-12-04 | C29: Reint Boltendal | D29: B | E29: =VLOOKUP(F29,'Groep A'!X$2:Y98,2) -> 1.45 | F29: 38 | G29: 1.52 | H29: 34 | I29: 5 | J29: 89.47368421 | K29: 30 | L29: 6 | M29: 78.94736842 | N29: 64 | O29: 1.28 | P29: 84.21052632 | Q29: 84
A30: 29 | B30: 2021-11-30 | C30: Folgert Kaman | D30: B | E30: =VLOOKUP(F30,'Groep A'!X$2:Y51,2) -> 0.65 | F30: 22 | G30: 0.88 | H30: 21 | I30: 5 | J30: 95.45454545 | K30: 16 | L30: 4 | M30: 72.72727273 | N30: 37 | O30: 0.74 | P30: 84.09090909 | Q30: 84
A31: 30 | B31: 2021-12-04 | C31: Cor Zeeman | D31: B | E31: =VLOOKUP(F31,'Groep A'!X$2:Y50,2) -> 1.15 | F31: 30 | G31: 1.2 | H31: 29 | I31: 4 | J31: 96.66666667 | K31: 21 | L31: 5 | M31: 70 | N31: 50 | O31: 1 | P31: 83.33333333 | Q31: 83
A32: 31 | B32: 2021-11-25 | C32: Reint Loer | D32: B | E32: =VLOOKUP(F32,'Groep A'!X$2:Y38,2) -> 1.25 | F32: 33 | G32: 1.32 | H32: 14 | I32: 3 | J32: 42.42424242 | K32: 40 | L32: 6 | M32: 121.2121212 | N32: 54 | O32: 1.08 | P32: 81.81818182 | Q32: 81
A33: 32 | B33: 2021-12-01 | C33: Jan Post | D33: B | E33: =VLOOKUP(F33,'Groep A'!X$2:Y117,2) -> 0.95 | F33: 26 | G33: 1.04 | H33: 15 | I33: 4 | J33: 57.69230769 | K33: 27 | L33: 8 | M33: 103.8461538 | N33: 42 | O33: 0.84 | P33: 80.76923077 | Q33: 80
A34: 33 | B34: 2021-12-02 | C34: Jan Schikker | D34: B | E34: =VLOOKUP(F34,'Groep A'!X$2:Y91,2) -> 1.05 | F34: 28 | G34: =F34/25 -> 1.12 | H34: 15 | I34: 4 | J34: =H34/F34*100 -> 53.57142857 | K34: 27 | L34: 4 | M34: =K34/F34*100 -> 96.42857143 | N34: =H34+K34 -> 42 | O34: =N34/50 -> 0.84 | P34: =O34/G34*100 -> 75 | Q34: =ROUNDDOWN(P34,0) -> 75
A35: 34 | B35: 2021-12-02 | C35: Hindrik Schuur | D35: B | E35: =VLOOKUP(F35,'Groep A'!X$2:Y44,2) -> 1.35 | F35: 35 | G35: 1.4 | H35: 20 | I35: 3 | J35: 57.14285714 | K35: 28 | L35: 5 | M35: 80 | N35: 48 | O35: 0.96 | P35: 68.57142857 | Q35: 68
A36: 35 | B36: 2021-11-30 | C36: Eisse Bolt | D36: B | E36: =VLOOKUP(F36,'Groep A'!X$2:Y56,2) -> 1.55 | F36: 40 | G36: 1.6 | H36: 26 | I36: 4 | J36: 65 | K36: 28 | L36: 8 | M36: 70 | N36: 54 | O36: 1.08 | P36: 67.5 | Q36: 67
A37: 36 | B37: 2021-12-02 | C37: Piet Wust | D37: B | E37: =VLOOKUP(F37,'Groep A'!X$2:Y42,2) -> 1.45 | F37: 38 | G37: 1.52 | H37: 25 | I37: 7 | J37: 65.78947368 | K37: 23 | L37: 7 | M37: 60.52631579 | N37: 48 | O37: 0.96 | P37: 63.15789474 | Q37: 63
A38: 37 | D38: B | E38: =VLOOKUP(F38,'Groep A'!X$2:Y61,2) -> 3.12 | F38: 68 | G38: 2.72 | J38: 0 | M38: 0 | N38: 0 | O38: 0 | P38: 0 | Q38: 0
A39: 38 | D39: B | E39: =VLOOKUP(F39,'Groep A'!X$2:Y58,2) -> 1.65 | F39: 42 | G39: 1.68 | J39: 0 | M39: 0 | N39: 0 | O39: 0 | P39: 0 | Q39: 0
A40: 39 | B40: 2021-12-04 | C40: Ella Hilbolling | D40: B | E40: =VLOOKUP(F40,'Groep A'!X$2:Y31,2) -> 0.65 | F40: 22 | G40: 0.88 | J40: 0 | M40: 0 | N40: 0 | O40: 0 | P40: 0 | Q40: 0
A41: 40 | B41: 2021-12-04 | C41: Harm Wending | D41: B | E41: =VLOOKUP(F41,'Groep A'!X$2:Y34,2) -> 1.65 | F41: 42 | G41: 1.68 | J41: 0 | M41: 0 | N41: 0 | O41: 0 | P41: 0 | Q41: 0
A42: 41 | D42: B | E42: =VLOOKUP(F42,'Groep A'!X$2:Y59,2) -> 0.65 | F42: 22 | G42: 0.88 | J42: 0 | M42: 0 | N42: 0 | O42: 0 | P42: 0 | Q42: 0
A43: 42 | D43: B | E43: =VLOOKUP(F43,'Groep A'!X$2:Y88,2) -> 1.55 | F43: 40 | G43: 1.6 | J43: 0 | M43: 0 | N43: 0 | O43: 0 | P43: 0 | Q43: 0
A44: 43 | D44: B | E44: =VLOOKUP(F44,'Groep A'!X$2:Y65,2) -> 1.65 | F44: 42 | G44: 1.68 | J44: 0 | M44: 0 | N44: 0 | O44: 0 | P44: 0 | Q44: 0
A45: 44 | D45: B | E45: =VLOOKUP(F45,'Groep A'!X$2:Y89,2) -> 0.85 | F45: 25 | G45: 1 | J45: 0 | M45: 0 | N45: 0 | O45: 0 | P45: 0 | Q45: 0
A46: 45 | D46: B | E46: =VLOOKUP(F46,'Groep A'!X$2:Y66,2) -> 1.25 | F46: 33 | G46: 1.32 | J46: 0 | M46: 0 | N46: 0 | O46: 0 | P46: 0 | Q46: 0
A47: 46 | D47: B | E47: =VLOOKUP(F47,'Groep A'!X$2:Y67,2) -> 1.25 | F47: 33 | G47: 1.32 | J47: 0 | M47: 0 | N47: 0 | O47: 0 | P47: 0 | Q47: 0
A48: 47 | D48: B | E48: =VLOOKUP(F48,'Groep A'!X$2:Y77,2) -> 1.55 | F48: 40 | G48: 1.6 | J48: 0 | M48: 0 | N48: 0 | O48: 0 | P48: 0 | Q48: 0
A49: 48 | D49: B | E49: =VLOOKUP(F49,'Groep A'!X$2:Y80,2) -> 1.55 | F49: 40 | G49: 1.6 | J49: 0 | M49: 0 | N49: 0 | O49: 0 | P49: 0 | Q49: 0
A50: 49 | D50: B | E50: =VLOOKUP(F50,'Groep A'!X$2:Y68,2) -> 1.25 | F50: 33 | G50: 1.32 | J50: 0 | M50: 0 | N50: 0 | O50: 0 | P50: 0 | Q50: 0
A51: 50 | D51: B | E51: =VLOOKUP(F51,'Groep A'!X$2:Y69,2) -> 1.45 | F51: 38 | G51: 1.52 | J51: 0 | M51: 0 | N51: 0 | O51: 0 | P51: 0 | Q51: 0
A52: 51 | D52: B | E52: =VLOOKUP(F52,'Groep A'!X$2:Y70,2) -> 0.95 | F52: 26 | G52: 1.04 | J52: 0 | M52: 0 | N52: 0 | O52: 0 | P52: 0 | Q52: 0
A53: 52 | D53: B | E53: =VLOOKUP(F53,'Groep A'!X$2:Y71,2) -> 1.15 | F53: 30 | G53: 1.2 | J53: 0 | M53: 0 | N53: 0 | O53: 0 | P53: 0 | Q53: 0
A54: 53 | D54: B | E54: =VLOOKUP(F54,'Groep A'!X$2:Y72,2) -> 1.25 | F54: 33 | G54: 1.32 | J54: 0 | M54: 0 | N54: 0 | O54: 0 | P54: 0 | Q54: 0
A55: 54 | D55: B | E55: =VLOOKUP(F55,'Groep A'!X$2:Y73,2) -> 1.25 | F55: 33 | G55: 1.32 | J55: 0 | M55: 0 | N55: 0 | O55: 0 | P55: 0 | Q55: 0
A56: 55 | D56: B | E56: =VLOOKUP(F56,'Groep A'!X$2:Y74,2) -> 1.05 | F56: 28 | G56: 1.12 | J56: 0 | M56: 0 | N56: 0 | O56: 0 | P56: 0 | Q56: 0
A57: 56 | D57: B | E57: =VLOOKUP(F57,'Groep A'!X$2:Y75,2) -> 0.95 | F57: 26 | G57: 1.04 | J57: 0 | M57: 0 | N57: 0 | O57: 0 | P57: 0 | Q57: 0
A58: 57 | D58: B | E58: =VLOOKUP(F58,'Groep A'!X$2:Y76,2) -> 1.35 | F58: 35 | G58: 1.4 | J58: 0 | M58: 0 | N58: 0 | O58: 0 | P58: 0 | Q58: 0
A59: 58 | D59: B | E59: =VLOOKUP(F59,'Groep A'!X$2:Y62,2) -> 1.05 | F59: 28 | G59: 1.12 | J59: 0 | M59: 0 | N59: 0 | O59: 0 | P59: 0 | Q59: 0
A60: 59 | D60: B | E60: =VLOOKUP(F60,'Groep A'!X$2:Y115,2) -> 1.35 | F60: 35 | G60: 1.4 | J60: 0 | M60: 0 | N60: 0 | O60: 0 | P60: 0 | Q60: 0
A61: 60 | D61: B | E61: =VLOOKUP(F61,'Groep A'!X$2:Y78,2) -> 0.95 | F61: 26 | G61: 1.04 | J61: 0 | M61: 0 | N61: 0 | O61: 0 | P61: 0 | Q61: 0
A62: 61 | D62: B | E62: =VLOOKUP(F62,'Groep A'!X$2:Y79,2) -> 0.85 | F62: 25 | G62: 1 | J62: 0 | M62: 0 | N62: 0 | O62: 0 | P62: 0 | Q62: 0
A63: 62 | D63: B | E63: =VLOOKUP(F63,'Groep A'!X$2:Y81,2) -> 0.85 | F63: 25 | G63: 1 | J63: 0 | M63: 0 | N63: 0 | O63: 0 | P63: 0 | Q63: 0
A64: 63 | D64: B | E64: =VLOOKUP(F64,'Groep A'!X$2:Y82,2) -> 0.55 | F64: 20 | G64: 0.8 | J64: 0 | M64: 0 | N64: 0 | O64: 0 | P64: 0 | Q64: 0
A65: 64 | D65: B | E65: =VLOOKUP(F65,'Groep A'!X$2:Y83,2) -> 1.55 | F65: 40 | G65: 1.6 | J65: 0 | M65: 0 | N65: 0 | O65: 0 | P65: 0 | Q65: 0
A66: 65 | D66: B | E66: =VLOOKUP(F66,'Groep A'!X$2:Y84,2) -> 1.05 | F66: 28 | G66: =F66/25 -> 1.12 | J66: =H66/F66*100 -> 0 | M66: =K66/F66*100 -> 0 | N66: =H66+K66 -> 0 | O66: =N66/50 -> 0 | P66: =O66/G66*100 -> 0 | Q66: =ROUNDDOWN(P66,0) -> 0
A67: 66 | D67: B | E67: =VLOOKUP(F67,'Groep A'!X$2:Y85,2) -> 0.65 | F67: 22 | G67: 0.88 | J67: 0 | M67: 0 | N67: 0 | O67: 0 | P67: 0 | Q67: 0
A68: 67 | D68: B | E68: =VLOOKUP(F68,'Groep A'!X$2:Y86,2) -> 1.15 | F68: 30 | G68: 1.2 | J68: 0 | M68: 0 | N68: 0 | O68: 0 | P68: 0 | Q68: 0
A69: 68 | D69: B | E69: =VLOOKUP(F69,'Groep A'!X$2:Y87,2) -> 1.15 | F69: 30 | G69: 1.2 | J69: 0 | M69: 0 | N69: 0 | O69: 0 | P69: 0 | Q69: 0
A70: 69 | D70: B | E70: =VLOOKUP(F70,'Groep A'!X$2:Y93,2) -> 0.27 | F70: 12 | G70: 0.48 | J70: 0 | M70: 0 | N70: 0 | O70: 0 | P70: 0 | Q70: 0
A71: 70 | D71: B | E71: =VLOOKUP(F71,'Groep A'!X$2:Y94,2) -> 0.27 | F71: 12 | G71: 0.48 | J71: 0 | M71: 0 | N71: 0 | O71: 0 | P71: 0 | Q71: 0
A72: 71 | D72: B | E72: =VLOOKUP(F72,'Groep A'!X$2:Y95,2) -> 0.27 | F72: 12 | G72: 0.48 | J72: 0 | M72: 0 | N72: 0 | O72: 0 | P72: 0 | Q72: 0
A73: 72 | D73: B | E73: =VLOOKUP(F73,'Groep A'!X$2:Y96,2) -> 0.27 | F73: 12 | G73: 0.48 | J73: 0 | M73: 0 | N73: 0 | O73: 0 | P73: 0 | Q73: 0
A74: 73 | D74: B | E74: =VLOOKUP(F74,'Groep A'!X$2:Y97,2) -> 0.27 | F74: 12 | G74: 0.48 | J74: 0 | M74: 0 | N74: 0 | O74: 0 | P74: 0 | Q74: 0
A75: 74 | D75: B | E75: =VLOOKUP(F75,'Groep A'!X$2:Y99,2) -> 0.27 | F75: 12 | G75: 0.48 | J75: 0 | M75: 0 | N75: 0 | O75: 0 | P75: 0 | Q75: 0
A76: 75 | D76: B | E76: =VLOOKUP(F76,'Groep A'!X$2:Y100,2) -> 0.27 | F76: 12 | G76: 0.48 | J76: 0 | M76: 0 | N76: 0 | O76: 0 | P76: 0 | Q76: 0
A77: 76 | D77: B | E77: =VLOOKUP(F77,'Groep A'!X$2:Y101,2) -> 0.27 | F77: 12 | G77: 0.48 | J77: 0 | M77: 0 | N77: 0 | O77: 0 | P77: 0 | Q77: 0
A78: 77 | D78: B | E78: =VLOOKUP(F78,'Groep A'!X$2:Y102,2) -> 0.27 | F78: 12 | G78: 0.48 | J78: 0 | M78: 0 | N78: 0 | O78: 0 | P78: 0 | Q78: 0
A79: 78 | D79: B | E79: =VLOOKUP(F79,'Groep A'!X$2:Y103,2) -> 0.27 | F79: 12 | G79: 0.48 | J79: 0 | M79: 0 | N79: 0 | O79: 0 | P79: 0 | Q79: 0
A80: 79 | D80: B | E80: =VLOOKUP(F80,'Groep A'!X$2:Y104,2) -> 0.27 | F80: 12 | G80: 0.48 | J80: 0 | M80: 0 | N80: 0 | O80: 0 | P80: 0 | Q80: 0
A81: 80 | D81: B | E81: =VLOOKUP(F81,'Groep A'!X$2:Y105,2) -> 0.27 | F81: 12 | G81: 0.48 | J81: 0 | M81: 0 | N81: 0 | O81: 0 | P81: 0 | Q81: 0
A82: 81 | D82: B | E82: =VLOOKUP(F82,'Groep A'!X$2:Y106,2) -> 0.27 | F82: 12 | G82: 0.48 | J82: 0 | M82: 0 | N82: 0 | O82: 0 | P82: 0 | Q82: 0
A83: 82 | D83: B | E83: =VLOOKUP(F83,'Groep A'!X$2:Y107,2) -> 0.27 | F83: 12 | G83: 0.48 | J83: 0 | M83: 0 | N83: 0 | O83: 0 | P83: 0 | Q83: 0
A84: 83 | D84: B | E84: =VLOOKUP(F84,'Groep A'!X$2:Y108,2) -> 0.27 | F84: 12 | G84: 0.48 | J84: 0 | M84: 0 | N84: 0 | O84: 0 | P84: 0 | Q84: 0
A85: 84 | D85: B | E85: =VLOOKUP(F85,'Groep A'!X$2:Y109,2) -> 0.27 | F85: 12 | G85: 0.48 | J85: 0 | M85: 0 | N85: 0 | O85: 0 | P85: 0 | Q85: 0
A86: 85 | D86: B | E86: =VLOOKUP(F86,'Groep A'!X$2:Y110,2) -> 0.27 | F86: 12 | G86: 0.48 | J86: 0 | M86: 0 | N86: 0 | O86: 0 | P86: 0 | Q86: 0
A87: 86 | D87: B | E87: =VLOOKUP(F87,'Groep A'!X$2:Y111,2) -> 0.27 | F87: 12 | G87: 0.48 | J87: 0 | M87: 0 | N87: 0 | O87: 0 | P87: 0 | Q87: 0
A88: 87 | D88: B | E88: =VLOOKUP(F88,'Groep A'!X$2:Y112,2) -> 0.27 | F88: 12 | G88: 0.48 | J88: 0 | M88: 0 | N88: 0 | O88: 0 | P88: 0 | Q88: 0
A89: 88 | D89: B | E89: =VLOOKUP(F89,'Groep A'!X$2:Y113,2) -> 0.27 | F89: 12 | G89: 0.48 | J89: 0 | M89: 0 | N89: 0 | O89: 0 | P89: 0 | Q89: 0
A90: 89 | D90: B | E90: =VLOOKUP(F90,'Groep A'!X$2:Y114,2) -> 0.27 | F90: 12 | G90: 0.48 | J90: 0 | M90: 0 | N90: 0 | O90: 0 | P90: 0 | Q90: 0

Sheet Blad1
